[Event "Titled Tuesday Blitz September 13 Late 2022"]
[White "Nazaretyan, Tigran"]
[Black "Melikyan, Gnel"]
[WhiteFideId "24162345"]
[BlackFideId "54109990"]
[WhiteElo "2173"]
[BlackElo "1772"]
[Result "1/2-1/2"]
[Round "08"]
[TimeControl "180+1"]
[Date "2022.09.13"]
[WhiteClock "0:00:13"]
[BlackClock "0:00:14"]

1. d4 {[%clk 0:02:51]}  d6 {[%clk 0:02:57]} 2. Nf3 {[%clk 0:02:51]}  Nf6 {[%clk 0:02:57]} 3. c4 {[%clk 0:02:51]}  Nbd7 {[%clk 0:02:56]} 4. Nc3 {[%clk 0:02:51]}  e5 {[%clk 0:02:57]} 5. e4 {[%clk 0:02:51]}  Be7 {[%clk 0:02:56]} 6. Be2 {[%clk 0:02:50]}  O-O {[%clk 0:02:56]} 7. O-O {[%clk 0:02:50]}  Re8 {[%clk 0:02:55]} 8. Re1 {[%clk 0:02:48]}  h6 {[%clk 0:02:55]} 9. Bf1 {[%clk 0:02:45]}  Bf8 {[%clk 0:02:50]} 10. h3 {[%clk 0:02:42]}  c6 {[%clk 0:02:46]} 11. d5 {[%clk 0:02:40]}  cxd5 {[%clk 0:02:44]} 12. cxd5 {[%clk 0:02:39]}  a6 {[%clk 0:02:34]} 13. Be3 {[%clk 0:02:38]}  b5 {[%clk 0:02:32]} 14. Nd2 {[%clk 0:02:32]}  Bb7 {[%clk 0:02:23]} 15. b4 {[%clk 0:02:29]}  Rc8 {[%clk 0:02:20]} 16. Qb3 {[%clk 0:02:25]}  Nb6 {[%clk 0:02:15]} 17. a4 {[%clk 0:02:20]}  Rxc3 {[%clk 0:02:05]} 18. Qxc3 {[%clk 0:02:11]}  Nxa4 {[%clk 0:02:04]} 19. Qa3 {[%clk 0:01:53]}  Nh5 {[%clk 0:01:49]} 20. g3 {[%clk 0:01:40]}  g6 {[%clk 0:01:47]} 21. Nc4 {[%clk 0:01:37]}  f5 {[%clk 0:01:42]} 22. Na5 {[%clk 0:01:34]}  Ba8 {[%clk 0:01:41]} 23. exf5 {[%clk 0:01:27]}  gxf5 {[%clk 0:01:36]} 24. Nc6 {[%clk 0:01:26]}  Qf6 {[%clk 0:01:35]} 25. Bd2 {[%clk 0:01:15]}  Qg6 {[%clk 0:01:27]} 26. Bg2 {[%clk 0:01:14]}  Bg7 {[%clk 0:01:20]} 27. Rac1 {[%clk 0:01:11]}  Kh7 {[%clk 0:01:12]} 28. Qe3 {[%clk 0:00:59]}  f4 {[%clk 0:01:01]} 29. Qe4 {[%clk 0:00:55]}  fxg3 {[%clk 0:00:55]} 30. Qxg6+ {[%clk 0:00:45]}  Kxg6 {[%clk 0:00:55]} 31. Be4+ {[%clk 0:00:45]}  Kf7 {[%clk 0:00:56]} 32. Rf1 {[%clk 0:00:43]}  g2 {[%clk 0:00:51]} 33. Kxg2 {[%clk 0:00:42]}  Nb2 {[%clk 0:00:50]} 34. Na5 {[%clk 0:00:37]}  Nf6 {[%clk 0:00:37]} 35. Rc7+ {[%clk 0:00:35]}  Re7 {[%clk 0:00:28]} 36. Bg6+ {[%clk 0:00:19]}  Kxg6 {[%clk 0:00:20]} 37. Rxe7 {[%clk 0:00:18]}  Nxd5 {[%clk 0:00:19]} 38. Ra7 {[%clk 0:00:18]}  Ne3+ {[%clk 0:00:19]} 39. Kg1 {[%clk 0:00:17]}  Nxf1 {[%clk 0:00:19]} 40. Kxf1 {[%clk 0:00:16]}  Be4 {[%clk 0:00:18]} 41. Rxa6 {[%clk 0:00:16]}  Bf8 {[%clk 0:00:18]} 42. Bc3 {[%clk 0:00:14]}  Nc4 {[%clk 0:00:17]} 43. Nxc4 {[%clk 0:00:14]}  bxc4 {[%clk 0:00:17]} 44. Bxe5 {[%clk 0:00:15]}  c3 {[%clk 0:00:17]} 45. Ke1 {[%clk 0:00:13]}  c2 {[%clk 0:00:17]} 46. Kd2 {[%clk 0:00:13]}  Kf5 {[%clk 0:00:15]} 47. Bxd6 {[%clk 0:00:13]}  Bg7 {[%clk 0:00:15]} 48. b5 {[%clk 0:00:10]}  Bb2 {[%clk 0:00:14]} 49. Rc6 {[%clk 0:00:07]}  Bxc6 {[%clk 0:00:13]} 50. Kxc2 {[%clk 0:00:06]}  Bxb5 {[%clk 0:00:02]} 51. Kxb2 {[%clk 0:00:06]}  h5 {[%clk 0:00:03]} 52. Bg3 {[%clk 0:00:06]}  Ke4 {[%clk 0:00:04]} 53. Kc3 {[%clk 0:00:06]}  Kf3 {[%clk 0:00:05]} 54. h4 {[%clk 0:00:05]}  Bd7 {[%clk 0:00:06]} 55. Kd4 {[%clk 0:00:05]}  Bg4 {[%clk 0:00:07]} 56. Ke5 {[%clk 0:00:06]}  Bh3 {[%clk 0:00:08]} 57. Kf6 {[%clk 0:00:06]}  Bg4 {[%clk 0:00:09]} 58. Kg5 {[%clk 0:00:06]}  Ke4 {[%clk 0:00:06]} 59. f4 {[%clk 0:00:06]}  Be6 {[%clk 0:00:04]} 60. Be1 {[%clk 0:00:06]}  Bd7 {[%clk 0:00:03]} 61. Bb4 {[%clk 0:00:07]}  Bc8 {[%clk 0:00:04]} 62. Be7 {[%clk 0:00:07]}  Bd7 {[%clk 0:00:04]} 63. Bd6 {[%clk 0:00:08]}  Bc8 {[%clk 0:00:04]} 64. Kxh5 {[%clk 0:00:08]}  Kf5 {[%clk 0:00:05]} 65. Kh6 {[%clk 0:00:08]}  Bb7 {[%clk 0:00:05]} 66. h5 {[%clk 0:00:08]}  Bf3 {[%clk 0:00:06]} 67. Be5 {[%clk 0:00:07]}  Bg4 {[%clk 0:00:07]} 68. Bd6 {[%clk 0:00:07]}  Bf3 {[%clk 0:00:07]} 69. Bc7 {[%clk 0:00:08]}  Bg4 {[%clk 0:00:07]} 70. Bb8 {[%clk 0:00:08]}  Bf3 {[%clk 0:00:08]} 71. Kg7 {[%clk 0:00:09]}  Bxh5 {[%clk 0:00:08]} 72. Kf8 {[%clk 0:00:09]}  Bf3 {[%clk 0:00:09]} 73. Ke7 {[%clk 0:00:10]}  Be4 {[%clk 0:00:09]} 74. Be5 {[%clk 0:00:11]}  Bf3 {[%clk 0:00:10]} 75. Bd6 {[%clk 0:00:11]}  Bg4 {[%clk 0:00:11]} 76. Be5 {[%clk 0:00:12]}  Bf3 {[%clk 0:00:12]} 77. Bd6 {[%clk 0:00:12]}  Bg4 {[%clk 0:00:13]} 78. Be5 {[%clk 0:00:13]}  Bf3 {[%clk 0:00:14]} 1/2-1/2


[Site "https://www.chess.com"]

[Event "Titled Tuesday Blitz September 13 Late 2022"]
[White "Pranav, V"]
[Black "Al Hosani, Omran"]
[WhiteFideId "25060783"]
[BlackFideId "9308733"]
[WhiteElo "2390"]
[BlackElo "2167"]
[Result "1-0"]
[Round "08"]
[TimeControl "180+1"]
[Date "2022.09.13"]
[WhiteClock "0:01:13"]
[BlackClock "0:00:04"]

1. Nf3 {[%clk 0:03:00]}  Nf6 {[%clk 0:02:59]} 2. g3 {[%clk 0:03:01]}  e6 {[%clk 0:02:58]} 3. Bg2 {[%clk 0:03:02]}  d5 {[%clk 0:02:58]} 4. O-O {[%clk 0:03:02]}  Be7 {[%clk 0:02:59]} 5. d3 {[%clk 0:03:03]}  O-O {[%clk 0:03:00]} 6. Nbd2 {[%clk 0:03:02]}  c5 {[%clk 0:03:00]} 7. e4 {[%clk 0:03:03]}  Nc6 {[%clk 0:03:00]} 8. Re1 {[%clk 0:03:03]}  b6 {[%clk 0:03:00]} 9. e5 {[%clk 0:03:03]}  Nd7 {[%clk 0:03:00]} 10. Nf1 {[%clk 0:03:04]}  Bb7 {[%clk 0:03:00]} 11. Bf4 {[%clk 0:03:04]}  b5 {[%clk 0:02:59]} 12. h4 {[%clk 0:03:03]}  a5 {[%clk 0:02:57]} 13. h5 {[%clk 0:03:03]}  h6 {[%clk 0:02:56]} 14. N1h2 {[%clk 0:03:03]}  Re8 {[%clk 0:02:50]} 15. Ng4 {[%clk 0:03:02]}  Bf8 {[%clk 0:02:50]} 16. Qd2 {[%clk 0:02:55]}  Kh7 {[%clk 0:02:44]} 17. c3 {[%clk 0:02:54]}  d4 {[%clk 0:02:39]} 18. Qd1 {[%clk 0:02:45]}  Ne7 {[%clk 0:02:22]} 19. cxd4 {[%clk 0:02:42]}  Nf5 {[%clk 0:02:22]} 20. Rc1 {[%clk 0:02:28]}  cxd4 {[%clk 0:02:09]} 21. Bd2 {[%clk 0:02:26]}  Bd5 {[%clk 0:02:06]} 22. a4 {[%clk 0:02:22]}  Nc5 {[%clk 0:02:01]} 23. Qe2 {[%clk 0:02:06]}  Nxa4 {[%clk 0:01:56]} 24. Nh4 {[%clk 0:01:48]}  Nxh4 {[%clk 0:01:53]} 25. gxh4 {[%clk 0:01:49]}  Qxh4 {[%clk 0:01:31]} 26. Bxd5 {[%clk 0:01:48]}  exd5 {[%clk 0:01:32]} 27. Qf3 {[%clk 0:01:48]}  Nxb2 {[%clk 0:00:46]} 28. Kg2 {[%clk 0:01:46]}  Ra6 {[%clk 0:00:25]} 29. Rc7 {[%clk 0:01:40]}  Kh8 {[%clk 0:00:21]} 30. Rxf7 {[%clk 0:01:38]}  Bb4 {[%clk 0:00:12]} 31. Bxb4 {[%clk 0:01:33]}  axb4 {[%clk 0:00:13]} 32. Rf8+ {[%clk 0:01:32]}  Rxf8 {[%clk 0:00:13]} 33. Qxf8+ {[%clk 0:01:33]}  Kh7 {[%clk 0:00:14]} 34. Qf5+ {[%clk 0:01:32]}  Kh8 {[%clk 0:00:12]} 35. e6 {[%clk 0:01:33]}  Qe7 {[%clk 0:00:11]} 36. Ne5 {[%clk 0:01:20]}  Qg5+ {[%clk 0:00:07]} 37. Qxg5 {[%clk 0:01:16]}  hxg5 {[%clk 0:00:08]} 38. e7 {[%clk 0:01:16]}  Ra8 {[%clk 0:00:07]} 39. Nf7+ {[%clk 0:01:12]}  Kg8 {[%clk 0:00:05]} 40. Nd8 {[%clk 0:01:12]}  Nxd3 {[%clk 0:00:03]} 41. e8=Q+ {[%clk 0:01:12]}  Kh7 {[%clk 0:00:04]} 42. Qg6+ {[%clk 0:01:12]}  Kg8 {[%clk 0:00:04]} 43. Re8# {[%clk 0:01:13]} 1-0


[Site "https://www.chess.com"]

[Event "Titled Tuesday Blitz September 13 Late 2022"]
[White "Salem, A.R. Saleh"]
[Black "Dounis, Alexandros"]
[WhiteFideId "9301348"]
[BlackFideId "4213238"]
[WhiteElo "2628"]
[BlackElo "2204"]
[Result "0-1"]
[Round "08"]
[TimeControl "180+1"]
[Date "2022.09.13"]
[WhiteClock "0:00:03"]
[BlackClock "0:00:04"]

1. d4 {[%clk 0:03:00]}  Nf6 {[%clk 0:02:42]} 2. c4 {[%clk 0:03:01]}  g6 {[%clk 0:02:41]} 3. Nc3 {[%clk 0:03:01]}  d5 {[%clk 0:02:41]} 4. cxd5 {[%clk 0:03:02]}  Nxd5 {[%clk 0:02:42]} 5. e4 {[%clk 0:03:03]}  Nxc3 {[%clk 0:02:42]} 6. bxc3 {[%clk 0:03:04]}  Bg7 {[%clk 0:02:43]} 7. Bc4 {[%clk 0:03:05]}  c5 {[%clk 0:02:44]} 8. Ne2 {[%clk 0:03:06]}  Nc6 {[%clk 0:02:44]} 9. Be3 {[%clk 0:03:06]}  O-O {[%clk 0:02:45]} 10. O-O {[%clk 0:03:06]}  Qc7 {[%clk 0:02:45]} 11. Rc1 {[%clk 0:03:05]}  Rd8 {[%clk 0:02:40]} 12. h4 {[%clk 0:03:06]}  a6 {[%clk 0:02:40]} 13. h5 {[%clk 0:03:04]}  b5 {[%clk 0:02:39]} 14. Bd3 {[%clk 0:03:04]}  Bb7 {[%clk 0:02:35]} 15. h6 {[%clk 0:03:01]}  Bh8 {[%clk 0:02:33]} 16. e5 {[%clk 0:02:59]}  Nxe5 {[%clk 0:02:21]} 17. Bf4 {[%clk 0:02:59]}  Qc6 {[%clk 0:02:17]} 18. f3 {[%clk 0:02:58]}  Nxd3 {[%clk 0:02:14]} 19. Qxd3 {[%clk 0:02:59]}  e5 {[%clk 0:02:12]} 20. Bg5 {[%clk 0:02:58]}  Rd7 {[%clk 0:02:03]} 21. Rfe1 {[%clk 0:02:56]}  exd4 {[%clk 0:01:59]} 22. cxd4 {[%clk 0:02:57]}  c4 {[%clk 0:01:56]} 23. Qe3 {[%clk 0:02:56]}  b4 {[%clk 0:01:50]} 24. Kh1 {[%clk 0:02:51]}  Qd5 {[%clk 0:01:47]} 25. Nf4 {[%clk 0:02:49]}  Qd6 {[%clk 0:01:37]} 26. Rxc4 {[%clk 0:02:44]}  Rf8 {[%clk 0:01:27]} 27. d5 {[%clk 0:02:38]}  f6 {[%clk 0:01:21]} 28. Bh4 {[%clk 0:02:31]}  g5 {[%clk 0:01:20]} 29. Ne6 {[%clk 0:02:32]}  Re8 {[%clk 0:01:18]} 30. Rg4 {[%clk 0:01:53]}  Qxd5 {[%clk 0:01:14]} 31. Bxg5 {[%clk 0:01:47]}  Rxe6 {[%clk 0:01:10]} 32. Qxe6+ {[%clk 0:01:44]}  Qxe6 {[%clk 0:01:10]} 33. Rxe6 {[%clk 0:01:45]}  Kf7 {[%clk 0:01:09]} 34. Rb6 {[%clk 0:01:29]}  fxg5 {[%clk 0:01:07]} 35. Rxg5 {[%clk 0:01:27]}  Bc3 {[%clk 0:01:04]} 36. Rf5+ {[%clk 0:01:22]}  Ke7 {[%clk 0:01:02]} 37. Kh2 {[%clk 0:01:17]}  Bc8 {[%clk 0:00:48]} 38. Rc6 {[%clk 0:01:10]}  Bb7 {[%clk 0:00:45]} 39. Rb6 {[%clk 0:01:09]}  Kd8 {[%clk 0:00:41]} 40. Re6 {[%clk 0:01:05]}  Re7 {[%clk 0:00:37]} 41. Rd6+ {[%clk 0:00:43]}  Kc7 {[%clk 0:00:35]} 42. Rd3 {[%clk 0:00:43]}  Bc6 {[%clk 0:00:28]} 43. g4 {[%clk 0:00:28]}  Re2+ {[%clk 0:00:24]} 44. Kg3 {[%clk 0:00:27]}  Rxa2 {[%clk 0:00:25]} 45. Rf7+ {[%clk 0:00:27]}  Kb6 {[%clk 0:00:24]} 46. Rxh7 {[%clk 0:00:28]}  Be5+ {[%clk 0:00:22]} 47. Kh4 {[%clk 0:00:24]}  Rh2+ {[%clk 0:00:18]} 48. Kg5 {[%clk 0:00:24]}  a5 {[%clk 0:00:18]} 49. Re7 {[%clk 0:00:20]}  Bc3 {[%clk 0:00:15]} 50. f4 {[%clk 0:00:16]}  a4 {[%clk 0:00:15]} 51. f5 {[%clk 0:00:15]}  a3 {[%clk 0:00:16]} 52. f6 {[%clk 0:00:05]}  a2 {[%clk 0:00:14]} 53. Rd1 {[%clk 0:00:06]}  Bd2+ {[%clk 0:00:10]} 54. Rxd2 {[%clk 0:00:03]}  Rxd2 {[%clk 0:00:10]} 55. Re1 {[%clk 0:00:04]}  Bd5 {[%clk 0:00:07]} 56. Kg6 {[%clk 0:00:04]}  b3 {[%clk 0:00:05]} 57. h7 {[%clk 0:00:03]}  Rh2 {[%clk 0:00:04]} 58. Rd1 {[%clk 0:00:04]}  b2 {[%clk 0:00:03]} 59. Rxd5 {[%clk 0:00:04]}  b1=Q+ {[%clk 0:00:03]} 60. Kf7 {[%clk 0:00:04]}  a1=Q {[%clk 0:00:04]} 61. Rh5 {[%clk 0:00:02]}  Rxh5 {[%clk 0:00:03]} 62. gxh5 {[%clk 0:00:03]}  Qxh7+ {[%clk 0:00:04]} 0-1


[Site "https://www.chess.com"]

[Event "Titled Tuesday Blitz September 13 Late 2022"]
[White "Tanenbaum, Zachary"]
[Black "Kamsky, Gata"]
[WhiteFideId "2060850"]
[BlackFideId "2000024"]
[WhiteElo "2175"]
[BlackElo "2666"]
[Result "0-1"]
[Round "08"]
[TimeControl "180+1"]
[Date "2022.09.13"]
[WhiteClock "0:00:01"]
[BlackClock "0:00:17"]

1. e4 {[%clk 0:03:00]}  c5 {[%clk 0:02:53]} 2. Nf3 {[%clk 0:03:00]}  e6 {[%clk 0:02:48]} 3. d4 {[%clk 0:03:00]}  cxd4 {[%clk 0:02:47]} 4. Nxd4 {[%clk 0:03:01]}  a6 {[%clk 0:02:46]} 5. Bd3 {[%clk 0:03:01]}  Bc5 {[%clk 0:02:44]} 6. Nb3 {[%clk 0:03:00]}  Ba7 {[%clk 0:02:44]} 7. O-O {[%clk 0:02:59]}  Ne7 {[%clk 0:02:43]} 8. Qg4 {[%clk 0:02:49]}  O-O {[%clk 0:02:41]} 9. Nc3 {[%clk 0:02:49]}  Nbc6 {[%clk 0:02:40]} 10. Qg3 {[%clk 0:02:44]}  b5 {[%clk 0:02:23]} 11. Bf4 {[%clk 0:02:36]}  f5 {[%clk 0:02:22]} 12. Bd6 {[%clk 0:02:29]}  Rf6 {[%clk 0:02:18]} 13. exf5 {[%clk 0:01:56]}  Nxf5 {[%clk 0:02:17]} 14. Bxf5 {[%clk 0:01:56]}  Rxf5 {[%clk 0:02:17]} 15. Ne4 {[%clk 0:01:55]}  Bb7 {[%clk 0:01:36]} 16. Bc7 {[%clk 0:01:49]}  Qe7 {[%clk 0:01:35]} 17. Nd6 {[%clk 0:01:21]}  Rg5 {[%clk 0:01:34]} 18. Qh3 {[%clk 0:01:21]}  Bb8 {[%clk 0:01:07]} 19. Bxb8 {[%clk 0:01:17]}  Rxb8 {[%clk 0:01:08]} 20. Nxb7 {[%clk 0:00:37]}  Rxb7 {[%clk 0:01:08]} 21. Rad1 {[%clk 0:00:37]}  b4 {[%clk 0:01:07]} 22. Qd3 {[%clk 0:00:35]}  a5 {[%clk 0:01:03]} 23. Nd4 {[%clk 0:00:32]}  Nxd4 {[%clk 0:01:01]} 24. Qxd4 {[%clk 0:00:32]}  Rc5 {[%clk 0:00:57]} 25. Rd2 {[%clk 0:00:29]}  Rbc7 {[%clk 0:00:57]} 26. Qe4 {[%clk 0:00:27]}  g6 {[%clk 0:00:49]} 27. Re1 {[%clk 0:00:25]}  Qf6 {[%clk 0:00:47]} 28. b3 {[%clk 0:00:20]}  Qf5 {[%clk 0:00:43]} 29. Qxf5 {[%clk 0:00:17]}  gxf5 {[%clk 0:00:42]} 30. Ree2 {[%clk 0:00:14]}  Kf7 {[%clk 0:00:42]} 31. g3 {[%clk 0:00:14]}  d5 {[%clk 0:00:40]} 32. f4 {[%clk 0:00:14]}  Rc3 {[%clk 0:00:38]} 33. Kf2 {[%clk 0:00:14]}  Kf6 {[%clk 0:00:37]} 34. Kg2 {[%clk 0:00:14]}  h5 {[%clk 0:00:37]} 35. Kf2 {[%clk 0:00:14]}  h4 {[%clk 0:00:36]} 36. Kg2 {[%clk 0:00:11]}  hxg3 {[%clk 0:00:36]} 37. hxg3 {[%clk 0:00:10]}  a4 {[%clk 0:00:33]} 38. Kf2 {[%clk 0:00:10]}  a3 {[%clk 0:00:32]} 39. Kg2 {[%clk 0:00:10]}  Rg7 {[%clk 0:00:31]} 40. Rd3 {[%clk 0:00:10]}  Rxd3 {[%clk 0:00:31]} 41. cxd3 {[%clk 0:00:10]}  Rc7 {[%clk 0:00:31]} 42. Kf3 {[%clk 0:00:10]}  Rc1 {[%clk 0:00:31]} 43. Ke3 {[%clk 0:00:10]}  Ke7 {[%clk 0:00:30]} 44. Kf3 {[%clk 0:00:08]}  Kd6 {[%clk 0:00:30]} 45. Ke3 {[%clk 0:00:09]}  Rb1 {[%clk 0:00:27]} 46. Kf3 {[%clk 0:00:08]}  Rb2 {[%clk 0:00:27]} 47. Ke3 {[%clk 0:00:08]}  Kc5 {[%clk 0:00:27]} 48. d4+ {[%clk 0:00:08]}  Kd6 {[%clk 0:00:27]} 49. Kd3 {[%clk 0:00:08]}  Rb1 {[%clk 0:00:27]} 50. Ke3 {[%clk 0:00:07]}  Rg1 {[%clk 0:00:27]} 51. Kf2 {[%clk 0:00:07]}  Rd1 {[%clk 0:00:26]} 52. Ke3 {[%clk 0:00:07]}  Rc1 {[%clk 0:00:27]} 53. Kd3 {[%clk 0:00:08]}  Rc3+ {[%clk 0:00:27]} 54. Kd2 {[%clk 0:00:07]}  Rxg3 {[%clk 0:00:27]} 55. Rf2 {[%clk 0:00:06]}  Ke7 {[%clk 0:00:25]} 56. Kc2 {[%clk 0:00:04]}  Rg1 {[%clk 0:00:24]} 57. Kd3 {[%clk 0:00:04]}  Ra1 {[%clk 0:00:23]} 58. Rc2 {[%clk 0:00:03]}  Kf6 {[%clk 0:00:23]} 59. Ke3 {[%clk 0:00:03]}  Re1+ {[%clk 0:00:19]} 60. Kd3 {[%clk 0:00:02]}  Re4 {[%clk 0:00:17]} 61. Rc5 {[%clk 0:00:02]}  Rxf4 {[%clk 0:00:17]} 62. Rb5 {[%clk 0:00:02]}  Rf2 {[%clk 0:00:18]} 63. Rxb4 {[%clk 0:00:02]}  Rxa2 {[%clk 0:00:18]} 64. Ra4 {[%clk 0:00:02]}  f4 {[%clk 0:00:18]} 65. b4 {[%clk 0:00:02]}  f3 {[%clk 0:00:18]} 66. b5 {[%clk 0:00:01]}  f2 {[%clk 0:00:17]} 67. Kc3 {[%clk 0:00:01]}  f1=Q {[%clk 0:00:17]} 68. Kb4 {[%clk 0:00:01]}  Qc4+ {[%clk 0:00:17]} 0-1


[Site "https://www.chess.com"]

[Event "Titled Tuesday Blitz September 13 Late 2022"]
[White "Tari, Aryan"]
[Black "Sadhwani, Raunak"]
[WhiteFideId "1510045"]
[BlackFideId "35093487"]
[WhiteElo "2612"]
[BlackElo "2656"]
[Result "0-1"]
[Round "08"]
[TimeControl "180+1"]
[Date "2022.09.13"]
[WhiteClock "0:00:06"]
[BlackClock "0:00:09"]

1. e4 {[%clk 0:03:00]}  e5 {[%clk 0:02:59]} 2. Nf3 {[%clk 0:03:00]}  Nc6 {[%clk 0:02:59]} 3. Bc4 {[%clk 0:02:57]}  Nf6 {[%clk 0:02:58]} 4. d3 {[%clk 0:02:57]}  h6 {[%clk 0:02:58]} 5. Nc3 {[%clk 0:02:53]}  Bc5 {[%clk 0:02:54]} 6. Be3 {[%clk 0:02:45]}  Bb6 {[%clk 0:02:49]} 7. a3 {[%clk 0:02:38]}  d6 {[%clk 0:02:49]} 8. h3 {[%clk 0:02:35]}  O-O {[%clk 0:02:48]} 9. O-O {[%clk 0:02:15]}  Be6 {[%clk 0:02:48]} 10. Bxe6 {[%clk 0:02:12]}  fxe6 {[%clk 0:02:49]} 11. d4 {[%clk 0:02:12]}  Nd7 {[%clk 0:02:34]} 12. d5 {[%clk 0:01:36]}  exd5 {[%clk 0:02:35]} 13. exd5 {[%clk 0:01:23]}  Ne7 {[%clk 0:02:34]} 14. Bxb6 {[%clk 0:01:24]}  Nxb6 {[%clk 0:02:32]} 15. Qd3 {[%clk 0:01:23]}  Qd7 {[%clk 0:02:22]} 16. Rae1 {[%clk 0:01:23]}  Rf7 {[%clk 0:02:07]} 17. Nd2 {[%clk 0:01:20]}  Raf8 {[%clk 0:02:02]} 18. Nde4 {[%clk 0:01:21]}  a6 {[%clk 0:01:50]} 19. b3 {[%clk 0:01:19]}  Qf5 {[%clk 0:01:41]} 20. a4 {[%clk 0:01:16]}  Ng6 {[%clk 0:01:42]} 21. a5 {[%clk 0:01:06]}  Nc8 {[%clk 0:01:39]} 22. Qg3 {[%clk 0:00:58]}  Nce7 {[%clk 0:01:36]} 23. Re3 {[%clk 0:00:57]}  Nf4 {[%clk 0:01:35]} 24. Rd1 {[%clk 0:00:55]}  Kh8 {[%clk 0:01:34]} 25. Qg4 {[%clk 0:00:51]}  Qh7 {[%clk 0:01:30]} 26. Ree1 {[%clk 0:00:34]}  Nf5 {[%clk 0:01:27]} 27. Rd2 {[%clk 0:00:22]}  g5 {[%clk 0:01:23]} 28. Kh2 {[%clk 0:00:21]}  Rg7 {[%clk 0:01:13]} 29. g3 {[%clk 0:00:11]}  Ng6 {[%clk 0:01:13]} 30. Qh5 {[%clk 0:00:10]}  Nd4 {[%clk 0:01:12]} 31. Re3 {[%clk 0:00:11]}  Rgf7 {[%clk 0:01:08]} 32. Kg2 {[%clk 0:00:10]}  Ne7 {[%clk 0:01:00]} 33. h4 {[%clk 0:00:06]}  Nef5 {[%clk 0:01:00]} 34. hxg5 {[%clk 0:00:05]}  Rg7 {[%clk 0:00:26]} 35. Red3 {[%clk 0:00:05]}  hxg5 {[%clk 0:00:24]} 36. Qxh7+ {[%clk 0:00:05]}  Kxh7 {[%clk 0:00:25]} 37. Ne2 {[%clk 0:00:05]}  Kg6 {[%clk 0:00:23]} 38. Nxd4 {[%clk 0:00:04]}  Nxd4 {[%clk 0:00:23]} 39. Rd1 {[%clk 0:00:03]}  Rh7 {[%clk 0:00:21]} 40. Rh1 {[%clk 0:00:03]}  Rhf7 {[%clk 0:00:19]} 41. c3 {[%clk 0:00:02]}  Nxb3 {[%clk 0:00:18]} 42. Rdd1 {[%clk 0:00:03]}  Nxa5 {[%clk 0:00:18]} 43. Rb1 {[%clk 0:00:03]}  b6 {[%clk 0:00:16]} 44. Rh2 {[%clk 0:00:03]}  Rg7 {[%clk 0:00:09]} 45. Rbh1 {[%clk 0:00:03]}  Kf7 {[%clk 0:00:09]} 46. g4 {[%clk 0:00:03]}  Ke8 {[%clk 0:00:08]} 47. f3 {[%clk 0:00:04]}  Nc4 {[%clk 0:00:08]} 48. Rh5 {[%clk 0:00:04]}  Ne3+ {[%clk 0:00:08]} 49. Kg3 {[%clk 0:00:05]}  Nxd5 {[%clk 0:00:09]} 50. Rxg5 {[%clk 0:00:04]}  Rxg5 {[%clk 0:00:10]} 51. Nxg5 {[%clk 0:00:05]}  Kd7 {[%clk 0:00:09]} 52. Rh7+ {[%clk 0:00:05]}  Kc6 {[%clk 0:00:10]} 53. Ne6 {[%clk 0:00:06]}  Re8 {[%clk 0:00:09]} 54. Rxc7+ {[%clk 0:00:06]}  Nxc7 {[%clk 0:00:09]} 0-1


[Site "https://www.chess.com"]

[Event "Titled Tuesday Blitz September 13 Late 2022"]
[White "Ter-Sahakyan, Samvel"]
[Black "Bortnyk, Mykola"]
[WhiteFideId "13302531"]
[BlackFideId "14120836"]
[WhiteElo "2604"]
[BlackElo "2582"]
[Result "0-1"]
[Round "08"]
[TimeControl "180+1"]
[Date "2022.09.13"]
[WhiteClock "0:00:12"]
[BlackClock "0:00:25"]

1. e4 {[%clk 0:02:59]}  e5 {[%clk 0:02:58]} 2. Nf3 {[%clk 0:02:59]}  d6 {[%clk 0:02:58]} 3. d4 {[%clk 0:02:57]}  exd4 {[%clk 0:02:59]} 4. Nxd4 {[%clk 0:02:56]}  Nf6 {[%clk 0:03:00]} 5. Nc3 {[%clk 0:02:57]}  Be7 {[%clk 0:03:01]} 6. Bf4 {[%clk 0:02:52]}  O-O {[%clk 0:03:01]} 7. Qd2 {[%clk 0:02:53]}  d5 {[%clk 0:03:01]} 8. Ndb5 {[%clk 0:02:35]}  Bb4 {[%clk 0:02:58]} 9. f3 {[%clk 0:02:11]}  Na6 {[%clk 0:02:43]} 10. a3 {[%clk 0:02:09]}  Bxc3 {[%clk 0:02:25]} 11. Nxc3 {[%clk 0:02:07]}  dxe4 {[%clk 0:02:25]} 12. Qxd8 {[%clk 0:01:46]}  Rxd8 {[%clk 0:02:26]} 13. fxe4 {[%clk 0:01:45]}  Nc5 {[%clk 0:01:58]} 14. Bxc7 {[%clk 0:01:43]}  Re8 {[%clk 0:01:59]} 15. O-O-O {[%clk 0:01:19]}  Bg4 {[%clk 0:01:56]} 16. Rd4 {[%clk 0:01:01]}  Rac8 {[%clk 0:01:53]} 17. Bd6 {[%clk 0:00:41]}  Ncxe4 {[%clk 0:01:43]} 18. Nxe4 {[%clk 0:00:36]}  Nxe4 {[%clk 0:01:28]} 19. Bb5 {[%clk 0:00:26]}  Re6 {[%clk 0:01:09]} 20. Bd7 {[%clk 0:00:22]}  Rxd6 {[%clk 0:01:09]} 21. Rxd6 {[%clk 0:00:18]}  Nxd6 {[%clk 0:01:10]} 22. Bxg4 {[%clk 0:00:17]}  f5 {[%clk 0:01:11]} 23. Bf3 {[%clk 0:00:18]}  Rc7 {[%clk 0:01:05]} 24. Re1 {[%clk 0:00:17]}  Kf7 {[%clk 0:01:03]} 25. Bd5+ {[%clk 0:00:17]}  Kf8 {[%clk 0:01:04]} 26. b3 {[%clk 0:00:17]}  Re7 {[%clk 0:00:56]} 27. Rxe7 {[%clk 0:00:15]}  Kxe7 {[%clk 0:00:56]} 28. Kd2 {[%clk 0:00:16]}  Kf6 {[%clk 0:00:53]} 29. c4 {[%clk 0:00:16]}  Ke5 {[%clk 0:00:53]} 30. Kd3 {[%clk 0:00:16]}  b6 {[%clk 0:00:49]} 31. b4 {[%clk 0:00:13]}  h6 {[%clk 0:00:48]} 32. Ba8 {[%clk 0:00:11]}  g5 {[%clk 0:00:25]} 33. c5 {[%clk 0:00:10]}  bxc5 {[%clk 0:00:24]} 34. bxc5 {[%clk 0:00:11]}  Nb5 {[%clk 0:00:24]} 35. a4 {[%clk 0:00:12]}  Nc7 {[%clk 0:00:24]} 36. Kc4 {[%clk 0:00:12]}  Nxa8 {[%clk 0:00:25]} 0-1


[Site "https://www.chess.com"]